[Event "Polish Youth Ekstraliga 2022"]
[Site "Lublin"]
[Date "2022.07.01"]
[Round "7.29"]
[White "Adamczyk, Zuzanna"]
[Black "Goraj, Barbara"]
[Result "0-1"]
[ECO "E91"]
[WhiteElo "1909"]
[BlackElo "2035"]
[Annotator "NA RC"]
[PlyCount "178"]
[EventDate "2022.06.24"]
[EventType "team-tourn"]
[EventCountry "POL"]
[SourceTitle "playchess.com"]
[Source "ChessBase"]
[SourceQuality "1"]
[TimeControl "40/5400+30:1800+30"]

1. d4 {[%emt 0:00:31]} Nf6 {[%emt 0:00:23]} 2. c4 {[%emt 0:00:09]} g6 {[%emt 0:00:08]} 3. Nc3 {[%emt 0:00:05]} Bg7 {[%emt 0:00:08]} 4. e4 {[%emt 0:00:08]} d6 {[%emt 0:00:07]} 5. Nf3 {[%emt 0:00:10]} O-O {[%emt 0:00:37]} 6. Be2 {[%emt 0:00:05]} Nbd7 {[%emt 0:00:08]} 7. O-O {[%emt 0:00:19]} e5 {[%emt 0:00:10]} 8. Be3 {[%emt 0:00:21]} Qe7 {[%emt 0:00:15]} 9. Qc2 {[%emt 0:00:23]} exd4 {[%emt 0:01:00]} 10. Nxd4 {[%emt 0:01:02]} c6 {[%emt 0:00:12]} 11. Rad1 {[%emt 0:17:23]} a6 {[%emt 0:02:41]} 12. Bg5 {[%emt 0:12:14]} Re8 {[%emt 0:05:43]} 13. f3 {[%emt 0:01:50]} h6 {[%emt 0:05:29]} 14. Bh4 {[%emt 0:01:47]} Ne5 {[%emt 0:01:54]} 15. Bf2 {[%emt 0:08:24]} Bd7 {[%emt 0:07:51]} 16. Qd2 {[%emt 0:04:42]} Rad8 {[%emt 0:03:33]} 17. b3 {[%emt 0:06:59]} Bc8 {[%emt 0:07:43]} 18. Nc2 {[%emt 0:03:12]} Qc7 {[%emt 0:11:06]} 19. h3 {[%emt 0:13:41]} g5 {[%emt 0:16:25]} 20. Ne3 {[%emt 0:12:12]} Ng6 {[%emt 0:02:15]} 21. Rfe1 {[%emt 0:04:46]} Nf4 {[%emt 0:03:56]} 22. Bf1 {[%emt 0:03:12]} Be6 {[%emt 0:03:41]} 23. Qc1 {[%emt 0:06:49]} Qa5 {[%emt 0:02:50]} 24. Ne2 {[%emt 0:00:35]} N6h5 {[%emt 0:05:00]} ({Black should play} 24... Nxe2+ $14 25. Rxe2 Nh5) 25. a3 {[%emt 0:00:50]} Nxe2+ {[%emt 0:07:40]} 26. Rxe2 {[%emt 0:00:08]} Qe5 {[%emt 0:00:17]} 27. Ng4 {[%emt 0:00:30]} Bxg4 {[%emt 0:01:50]} 28. hxg4 {[%emt 0:00:10]} Ng3 {[%emt 0:02:33]} 29. Ree1 {[%emt 0:00:46]} h5 {[%emt 0:02:48]} 30. gxh5 {[%emt 0:00:31]} Nxh5 {[%emt 0:04:53]} 31. Qe3 {[%emt 0:00:28]} Re6 {[%emt 0:00:25]} 32. Qd4 {[%emt 0:00:56]} Qf4 {[%emt 0:00:26]} 33. Qe3 {[%emt 0:00:20]} Qe5 {[%emt 0:00:34]} 34. Qd4 {[%emt 0:00:06]} Qa5 {[%emt 0:00:06]} 35. Qb6 {[%emt 0:00:17]} Qxb6 {[%emt 0:01:53]} 36. Bxb6 {[%emt 0:00:02]} Rde8 {[%emt 0:00:10]} 37. Bf2 {[%emt 0:01:05]} Bb2 {[%emt 0:01:02]} 38. a4 {[%emt 0:00:15]} Be5 {[%emt 0:00:20]} 39. Bd4 {[%emt 0:01:17]} Bg3 {[%emt 0:00:40]} 40. Bf2 {[%emt 0:00:00]} Be5 {[%emt 0:00:00]} 41. Bd4 {[%emt 0:02:05]} Bf4 {[%emt 0:11:20]} 42. Be3 {[%emt 0:07:59]} Ng3 {[%emt 0:02:43]} 43. Bxf4 {[%emt 0:06:29]} gxf4 {[%emt 0:00:20]} 44. Kf2 {[%emt 0:01:25]} Kf8 {[%emt 0:03:42]} 45. Bd3 {[%emt 0:00:55]} Re5 {[%emt 0:01:02]} 46. Bb1 {[%emt 0:03:09]} Ke7 {[%emt 0:00:21]} 47. Rd2 {[%emt 0:03:23]} a5 {[%emt 0:04:03]} 48. Red1 {[%emt 0:01:04]} Rd8 {[%emt 0:00:23]} 49. Rd4 {[%emt 0:00:57]} b6 {[%emt 0:01:21]} 50. R4d2 {[%emt 0:00:55] [#]} Rg5 {[%emt 0:01:44]} (50... Rh5 $1 $17) 51. Rd4 {[%emt 0:01:08]} f6 {[%emt 0:01:34]} 52. R4d2 {[%emt 0:00:40]} Ke6 {[%emt 0:00:21]} 53. Bd3 {[%emt 0:00:33]} Ke5 {[%emt 0:01:32]} 54. Bb1 {[%emt 0:00:34]} Rd7 {[%emt 0:04:08]} 55. Bc2 {[%emt 0:00:54]} Rd8 {[%emt 0:00:15]} (55... Rg8 $17) 56. Bb1 {[%emt 0:00:04]} Rh5 {[%emt 0:01:52]} 57. Bc2 {[%emt 0:00:35]} Nh1+ {[%emt 0:00:43]} ({Black should try} 57... Rh1 $17) 58. Kg1 {[%emt 0:00:59]} (58. Ke2 $1 $15) 58... Ng3 {[%emt 0:00:07]} 59. Kf2 {[%emt 0:00:06]} Rh2 {[%emt 0:00:28]} 60. Rg1 {[%emt 0:01:03]} Rg8 {[%emt 0:00:52]} 61. Rgd1 {[%emt 0:02:29]} Rd8 {[%emt 0:00:45]} 62. Rg1 {[%emt 0:03:56]} Rh6 {[%emt 0:00:59]} 63. Rgd1 $17 {[%emt 0:00:19]} Rhh8 {[%emt 0:00:11]} 64. Rg1 {[%emt 0:00:30]} Rh1 {[%emt 0:00:14]} 65. Rxh1 {[%emt 0:00:24]} Nxh1+ {[%emt 0:00:06]} 66. Kg1 {[%emt 0:00:15]} Ng3 {[%emt 0:00:14]} 67. Kf2 {[%emt 0:00:33]} Rh8 {[%emt 0:00:05]} 68. Rd1 {[%emt 0:00:49]} Rh1 {[%emt 0:01:58]} 69. Rxh1 {[%emt 0:00:08]} Nxh1+ {[%emt 0:00:06]} 70. Ke2 {[%emt 0:00:03]} Kd4 {[%emt 0:00:25]} 71. Kd2 {[%emt 0:00:19]} Ng3 {[%emt 0:00:21]} 72. Bd3 {[%emt 0:01:02]} c5 {[%emt 0:00:28]} 73. Bb1 {[%emt 0:00:45]} Nf1+ {[%emt 0:00:25]} 74. Ke2 {[%emt 0:00:35]} Ne3 {[%emt 0:00:56]} 75. Kf2 {[%emt 0:00:59]} Kc3 {[%emt 0:01:16]} 76. e5 {[%emt 0:00:49]} dxe5 {[%emt 0:00:44]} 77. g3 {[%emt 0:00:43]} Kxb3 {[%emt 0:00:21]} 78. gxf4 {[%emt 0:00:08]} exf4 {[%emt 0:00:07]} 79. Ke2 {[%emt 0:00:14]} Kxc4 {[%emt 0:00:07]} 80. Kd2 {[%emt 0:00:16]} Kd4 {[%emt 0:00:19]} 81. Be4 {[%emt 0:00:28]} c4 {[%emt 0:00:08]} 82. Bc6 {[%emt 0:00:31]} c3+ {[%emt 0:00:11]} 83. Kc1 {[%emt 0:00:13]} Kc4 {[%emt 0:00:50]} 84. Bb5+ {[%emt 0:01:07]} Kb3 {[%emt 0:00:06]} 85. Bc6 {[%emt 0:00:43]} Nf5 {[%emt 0:00:26]} 86. Kb1 {[%emt 0:00:58]} Nd4 {[%emt 0:00:09]} 87. Bb5 {[%emt 0:00:31]} c2+ {[%emt 0:00:22]} 88. Kc1 {[%emt 0:00:06]} Kc3 {[%emt 0:00:36]} 89. Bc6 {[%emt 0:00:10]} Ne2# {[%emt 0:00:37]} 0-1

[Event "Polish Youth Ekstraliga 2022"]
[Site "Lublin"]
[Date "2022.07.01"]
[Round "7.30"]
[White "Jaros, Emilia"]
[Black "Gaszka, Zuzanna"]
[Result "1-0"]
[ECO "C24"]
[WhiteElo "1366"]
[BlackElo "1621"]
[Annotator "NA RC"]
[PlyCount "105"]
[EventDate "2022.06.24"]
[EventType "team-tourn"]
[EventCountry "POL"]
[SourceTitle "playchess.com"]
[Source "ChessBase"]
[SourceQuality "1"]
[TimeControl "40/5400+30:1800+30"]

1. e4 {[%emt 0:00:08]} e5 {[%emt 0:00:05]} 2. Bc4 {[%emt 0:00:20]} Nf6 {[%emt 0:00:32]} 3. d3 {[%emt 0:00:46]} c6 {[%emt 0:01:53]} 4. Nf3 {[%emt 0:01:11]} d5 {[%emt 0:03:18]} 5. Bb3 {[%emt 0:00:59]} a5 {[%emt 0:05:55]} 6. a4 {[%emt 0:01:49]} Bb4+ {[%emt 0:07:52]} 7. Bd2 {[%emt 0:10:48]} Bxd2+ {[%emt 0:00:51]} 8. Qxd2 {[%emt 0:01:51]} Nbd7 {[%emt 0:05:23]} 9. Nc3 {[%emt 0:02:36]} d4 {[%emt 0:03:19]} 10. Ne2 {[%emt 0:00:44]} Qc7 {[%emt 0:01:54]} 11. Ng3 {[%emt 0:02:35]} h6 {[%emt 0:04:54]} 12. Nh4 {[%emt 0:07:49]} Nc5 {[%emt 0:02:46]} 13. Nhf5 {[%emt 0:09:09]} Bxf5 {[%emt 0:05:46]} 14. Nxf5 {[%emt 0:01:03]} O-O {[%emt 0:00:15]} 15. Bc4 {[%emt 0:02:10]} Qd7 {[%emt 0:02:41]} 16. O-O {[%emt 0:05:43]} b5 {[%emt 0:03:47]} 17. axb5 {[%emt 0:02:03]} cxb5 {[%emt 0:00:08]} 18. Ba2 {[%emt 0:00:31]} Rfc8 {[%emt 0:07:17]} 19. f4 {[%emt 0:03:33]} Ne6 {[%emt 0:10:19]} 20. fxe5 {[%emt 0:05:35]} Ng4 {[%emt 0:00:54]} 21. Bd5 {[%emt 0:09:30]} Ra6 {[%emt 0:04:41]} 22. h3 {[%emt 0:06:27]} Nxe5 {[%emt 0:00:56]} 23. Qf2 {[%emt 0:02:08]} Rf8 {[%emt 0:11:07]} 24. Nxd4 {[%emt 0:03:48]} Nxd4 {[%emt 0:01:07]} 25. Qxd4 {[%emt 0:00:20]} Nc6 {[%emt 0:00:44]} 26. Qc5 {[%emt 0:05:17]} Nb4 {[%emt 0:00:57]} 27. Rf2 {[%emt 0:03:08]} Nxd5 {[%emt 0:01:44]} 28. Qxd5 {[%emt 0:00:18]} Qxd5 {[%emt 0:00:20]} 29. exd5 {[%emt 0:00:09]} Rc8 {[%emt 0:01:29]} 30. Rc1 {[%emt 0:01:00]} Rd6 {[%emt 0:00:20]} 31. Rf5 {[%emt 0:01:21]} g6 {[%emt 0:00:38]} 32. Re5 {[%emt 0:00:29]} Kg7 {[%emt 0:01:49]} 33. c4 {[%emt 0:01:16]} bxc4 {[%emt 0:00:26]} 34. dxc4 {[%emt 0:00:11]} Kf6 {[%emt 0:00:31]} 35. Ree1 {[%emt 0:00:19]} Rc5 {[%emt 0:01:02]} 36. Rc3 {[%emt 0:00:55]} Rd7 {[%emt 0:01:02]} 37. Kf2 {[%emt 0:01:18]} Rb7 {[%emt 0:00:51]} 38. b3 {[%emt 0:01:43]} Rd7 {[%emt 0:00:51]} 39. Rf3+ {[%emt 0:01:07]} Kg7 {[%emt 0:00:13]} 40. Ra1 {[%emt 0:00:00]} h5 {[%emt 0:00:00]} 41. Ke3 {[%emt 0:01:28]} Ra7 {[%emt 0:03:31]} 42. Kd4 {[%emt 0:00:51]} Rcc7 {[%emt 0:00:42]} 43. d6 {[%emt 0:01:06]} Rd7 {[%emt 0:01:45]} 44. Kd5 {[%emt 0:00:42]} Kf8 {[%emt 0:01:09]} 45. Re3 {[%emt 0:00:31]} Ra8 {[%emt 0:02:13]} 46. c5 {[%emt 0:01:24]} Rdd8 {[%emt 0:01:15]} 47. Re7 {[%emt 0:01:08]} f6 {[%emt 0:00:29]} 48. g4 {[%emt 0:01:10]} hxg4 {[%emt 0:01:06]} 49. hxg4 {[%emt 0:00:11]} f5 {[%emt 0:00:15]} 50. gxf5 {[%emt 0:00:18]} gxf5 {[%emt 0:00:05]} 51. Rf1 {[%emt 0:00:52]} a4 {[%emt 0:00:10]} 52. Rxf5+ {[%emt 0:00:14]} Kg8 {[%emt 0:00:05]} 53. Re4 {[%emt 0:00:11]} 1-0

[Event "Polish Youth Ekstraliga 2022"]
[Site "Lublin"]
[Date "2022.07.02"]
[Round "8.1"]
[White "Czopor, Maciej"]
[Black "Kutowski, Marcel"]
[Result "1/2-1/2"]
[ECO "A25"]
[WhiteElo "2425"]
[BlackElo "1954"]
[Annotator "TA"]
[PlyCount "142"]
[EventDate "2022.06.24"]
[EventType "team-tourn"]
[EventCountry "POL"]
[SourceTitle "playchess.com"]
[Source "ChessBase"]
[SourceQuality "1"]
[TimeControl "40/5400+30:1800+30"]

{[%evp 9,142,20,40,39,63,5,5,-20,41,-10,18,-49,-46,-52,-48,-56,-46,-41,-55,-100,-99,-119,-143,-127,-141,-127,-118,-159,-159,-163,-145,-166,-172,-175,-175,-222,-219,-205,-208,-218,-220,-193,-200,-197,-168,-159,-150,-185,-177,-193,-200,-222,-223,-209,-227,-331,-210,-280,-272,-272,-272,-332,-331,-292,-213,-260,-219,-203,-192,-293,-280,-375,-367,-328,-106,-103,-106,-105,-97,-97,-100,-97,-103,-105,-106,-111,-98,-115,-105,-99,-94,-181,-164,-166,-158,-161,-94,-94,-94,-94,-94,-94,-94,-94,-94,-94,-94,-94,-93,-93,-93,-93,-93,-94,-94,-94,-94,-94,-94,-94,-94,-94,-94,-94,-94,-94,-48,-94,-94,-94,-94,-94,-94,-94,-94]} 1. c4 {[%emt 0:00:04]} e5 {[%emt 0:02:03]} 2. Nc3 {[%emt 0:00:08]} Nc6 {[%emt 0:00:04]} 3. e3 {[%emt 0:00:15]} Nf6 {[%emt 0:03:08]} 4. a3 {[%emt 0:01:56]} a5 {[%emt 0:01:45]} 5. Nf3 {[%emt 0:02:08]} d6 {[%emt 0:00:38]} 6. d4 {[%emt 0:03:32] A25: English Opening vs King's Indian with ...Nc6 but without early d3.} g6 {[%emt 0:04:17]} 7. dxe5 {[%emt 0:13:16]} (7. d5 $14 Ne7 8. e4) 7... Nxe5 $11 {[%emt 0:03:48]} 8. Be2 {[%emt 0:03:25] The position is equal.} Bg7 {[%emt 0:02:03]} (8... Nxf3+ $11 9. Bxf3 Nd7) 9. O-O {[%emt 0:04:05]} ({White should play} 9. Nxe5 $14 dxe5 10. Qxd8+ Kxd8 11. O-O) 9... O-O {[%emt 0:02:16] [#]} 10. Qb3 $146 {[%emt 0:09:57]} (10. Nxe5 $11 dxe5 11. e4) ({Predecessor:} 10. Nd4 Qe7 11. Qc2 Bd7 12. b3 Nc6 13. Ncb5 Nxd4 14. Nxd4 Ng4 15. Ra2 Rad8 16. h3 {1-0 (50) Constandache,V (1588)-Balaban Voia,A (2004) Baile Felix 2017}) 10... Nfd7 $15 {[%emt 0:06:26]} 11. Nd4 {[%emt 0:12:51]} Nc5 {[%emt 0:03:22]} 12. Qc2 {[%emt 0:00:05]} a4 {[%emt 0:02:39]} 13. Bd2 {[%emt 0:02:18]} Nc6 {[%emt 0:12:51]} 14. Nxc6 {[%emt 0:01:49]} bxc6 {[%emt 0:00:06]} 15. Bf3 {[%emt 0:05:22]} Bf5 $1 $36 {[%emt 0:05:48][%mdl 2048] Black is really pushing.} 16. e4 {[%emt 0:00:40]} Be6 {[%emt 0:00:17]} 17. Ne2 {[%emt 0:07:27]} Qc8 {[%emt 0:08:07]} 18. Nc1 Qa6 {[%emt 0:04:44]} 19. Be2 {[%emt 0:09:35]} f5 {[%emt 0:00:55]} 20. Bb4 {[%emt 0:01:22]} Nxe4 {[%emt 0:03:33]} 21. c5 {[%emt 0:00:18]} Qa7 {[%emt 0:03:17][%cal Rd6c5]} 22. Nd3 {[%emt 0:00:29]} (22. Bc4 $142 Bxc4 23. Qxc4+ d5 24. Qc2) 22... Bb3 $19 {[%emt 0:01:52]} 23. Qc1 {[%emt 0:00:22]} Bd4 {[%emt 0:02:04]} 24. Bf3 {[%emt 0:03:35]} Qa6 {[%emt 0:08:57]} ({Weaker is} 24... dxc5 25. Bxe4 cxb4 26. Bxc6 $15) 25. Nf4 {[%emt 0:06:03]} Qc4 {[%emt 0:02:12]} (25... Nxc5 26. Bxc5 Bxc5 27. Qc3) 26. cxd6 {[%emt 0:02:00]} c5 {[%emt 0:02:46]} ({Worse is} 26... Nxd6 27. Bxc6 Bxb2 28. Bxa8 $1 Qxc1 29. Raxc1 $11) 27. Bc3 {[%emt 0:03:32]} Bxc3 {[%emt 0:01:37]} 28. bxc3 {[%emt 0:00:58]} cxd6 {[%emt 0:00:08][%cal Bc7d6,Bd6d5][%mdl 32]} 29. Bxe4 {[%emt 0:00:58]} fxe4 {[%emt 0:00:39]} 30. Qe3 {[%emt 0:00:37]} d5 {[%emt 0:00:43]} 31. Rac1 {[%emt 0:01:44]} Rae8 {[%emt 0:01:05]} 32. h4 {[%emt 0:02:20]} (32. Nh3 $142) 32... Qa6 {[%emt 0:01:34][%cal Od5d4]} 33. g3 {[%emt 0:01:20]} Qd6 {[%emt 0:00:34]} 34. Rfe1 {[%emt 0:00:03]} d4 {[%emt 0:02:16]} 35. cxd4 {[%emt 0:00:01]} cxd4 {[%emt 0:00:07]} 36. Qd2 {[%emt 0:00:02]} Qe5 {[%emt 0:00:52]} 37. Rc6 {[%emt 0:01:32]} Rf7 {[%emt 0:03:47]} 38. Qc1 {[%emt 0:00:51]} Rd7 {[%emt 0:02:42]} 39. Rc5 {[%emt 0:00:39]} (39. Re2 $142) 39... Qe7 {[%emt 0:00:11]} 40. Rc8 {[%emt 0:00:00]} Rxc8 {[%emt 0:00:00]} 41. Qxc8+ {[%emt 0:02:16]} Rd8 $2 {[%emt 0:00:56]} (41... Qd8 $19 {has better winning chances.} 42. Qc6 d3) 42. Rxe4 $17 {[%emt 0:03:38]} Rxc8 {[%emt 0:01:12]} 43. Rxe7 {[%emt 0:00:01][%mdl 4096] Endgame KRB-KRN} Rd8 {[%emt 0:01:11] Prevents Rd7. Strongly threatening ...d3.} 44. Re2 {[%emt 0:01:46]} d3 {[%emt 0:01:31]} 45. Rd2 {[%emt 0:00:03]} Bc4 {[%emt 0:00:10]} 46. f3 {[%emt 0:06:27] [#]} Rb8 $1 {[%emt 0:01:20]} 47. Kf2 {[%emt 0:00:13]} ({But not} 47. Nxd3 $2 Rd8 48. Kf1 Rxd3 $19) 47... Rb3 {[%emt 0:00:20]} 48. Ke3 {[%emt 0:00:26]} Rxa3 {[%emt 0:00:30] Threatens to win with ...Rc3.} 49. Kd4 {[%emt 0:00:17] Against Rc3} Bf7 {[%emt 0:04:25]} 50. Nxd3 {[%emt 0:02:38]} (50. Rxd3 $17 Rxd3+ 51. Kxd3) 50... Rb3 $19 {[%emt 0:02:07] Hoping for ...a3.} 51. Ne5 {[%emt 0:07:13]} a3 {[%emt 0:06:47]} 52. Kc5 {[%emt 0:06:04] [#]} Re3 {[%emt 0:06:33]} (52... Rc3+ $1 $19 53. Kb4 Rb3+ 54. Kc5 Re3 55. Nxf7 Kxf7) 53. Rd8+ $17 {[%emt 0:00:26]} Kg7 {[%emt 0:00:09]} 54. Kd4 {[%emt 0:00:25]} a2 {[%emt 0:01:42]} 55. Ra8 {[%emt 0:00:07] Inhibits Ra3.} Re1 {[%emt 0:00:10][%cal Be3e1,Be1a1,Ba1a3][%mdl 32]} 56. Nxf7 {[%emt 0:00:05][%cal Oa8a2]} a1=Q+ {[%emt 0:00:09]} 57. Rxa1 {[%emt 0:00:02]} Rxa1 {[%emt 0:00:07] KR-KN} 58. Ng5 {[%emt 0:00:39]} Ra3 {[%emt 0:00:49] ...h6 is the strong threat.} 59. Ke4 {[%emt 0:00:28]} h6 {[%emt 0:00:40]} 60. Ne6+ {[%emt 0:00:32]} Kf6 {[%emt 0:00:09]} 61. Nd4 {[%emt 0:02:47]} Ra4 {[%emt 0:00:47]} 62. Ke3 {[%emt 0:02:17]} Ke5 {[%emt 0:00:18] ( -> ...Ra3+)} 63. Nc6+ {[%emt 0:00:18]} Kd6 {[%emt 0:00:54]} 64. Nd4 {[%emt 0:00:01]} Kd5 {[%emt 0:01:09]} 65. Ne2 {[%emt 0:00:03] aiming for Nc3+.} Ke5 {[%emt 0:01:21]} 66. Nf4 {[%emt 0:00:18]} Ra3+ {[%emt 0:00:27]} 67. Kf2 {[%emt 0:01:10]} Kf5 {[%emt 0:00:30]} (67... Ra6 $17 68. Ke3 Ra3+ 69. Kf2 Kf6) 68. Ne2 {[%emt 0:00:11]} (68. h5 $1 $15) 68... h5 {[%emt 0:03:42] Black is better.} 69. Nd4+ {[%emt 0:00:23]} Kf6 {[%emt 0:00:13]} 70. Ne2 {[%emt 0:00:11]} Ke5 {[%emt 0:00:33]} 71. Nf4 {[%emt 0:00:15]} Kf5 {[%emt 0:00:36] Weighted Error Value: White=0.20 (precise) /Black=0.14 (very precise)} 1/2-1/2

[Event "Polish Youth Ekstraliga 2022"]
[Site "Lublin"]
[Date "2022.07.02"]
[Round "8.2"]
[White "Wilk, Igor"]
[Black "Ochedzan, Tymon"]
[Result "1/2-1/2"]
[ECO "B92"]
[WhiteElo "1824"]
[BlackElo "2261"]
[Annotator "TA"]
[PlyCount "75"]
[EventDate "2022.06.24"]
[EventType "team-tourn"]
[EventCountry "POL"]
[SourceTitle "playchess.com"]
[Source "ChessBase"]
[SourceQuality "1"]
[TimeControl "40/5400+30:1800+30"]

{[%evp 17,75,5,0,0,22,16,23,0,0,0,0,0,0,0,0,0,0,0,0,0,0,0,0,0,0,0,2,8,8,5,11,0,0,0,0,0,0,0,0,0,0,0,8,8,14,14,14,11,11,4,31,31,31,31,31,31,31,12,31,31]} 1. e4 {[%emt 0:00:04]} c5 {[%emt 0:00:07]} 2. Nf3 {[%emt 0:00:07][%cal Bg1f3,Bf3d4,Bd4b3][%mdl 32]} d6 {[%emt 0:00:07]} 3. d4 {[%emt 0:00:42]} cxd4 {[%emt 0:00:10]} 4. Nxd4 {[%emt 0:00:07]} Nf6 {[%emt 0:00:06]} 5. Nc3 {[%emt 0:00:08]} a6 {[%emt 0:00:08]} 6. Be2 {[%emt 0:00:33]} e5 {[%emt 0:00:13]} 7. Nb3 {[%emt 0:00:10]} Be7 {[%emt 0:00:11]} 8. Bg5 {[%emt 0:00:17]} Be6 {[%emt 0:00:37]} 9. Bxf6 {[%emt 0:00:33]} Bxf6 {[%emt 0:00:07]} 10. Qd3 {[%emt 0:00:07] B92: Sicilian Najdorf: 6 Be2.} Bg5 {[%emt 0:01:20] 10...Be7 is setting a new trend.} 11. Rd1 {[%emt 0:06:46]} Nc6 {[%emt 0:00:53]} 12. a3 {[%emt 0:06:32] Prevents Nb4. White has an edge.} O-O {[%emt 0:02:38]} 13. O-O {[%emt 0:01:16]} Rc8 {[%emt 0:08:25]} 14. Qxd6 {[%emt 0:10:40] [#]} Nd4 $146 {[%emt 0:04:05]} ({Predecessor:} 14... Qxd6 15. Rxd6 Be7 16. Rd2 Rfd8 17. Nd5 Bg5 18. Rdd1 b5 19. c4 bxc4 20. Bxc4 Nd4 21. Nxd4 Rxc4 {½-½ (31) Lovik,L (2183)-Perez Ponsa,F (2390) Gibraltar 2009}) 15. Qxe5 {[%emt 0:06:39]} Bf6 {[%emt 0:01:26]} 16. Qf4 {[%emt 0:00:33]} Bg5 $1 {[%emt 0:04:28] This bishop pair is nice.} 17. Qe5 {[%emt 0:01:48]} Bf6 {[%emt 0:03:23]} 18. Qf4 {[%emt 0:00:14] [#] aiming for Nxd4.} Bg5 $1 {[%emt 0:05:20]} 19. Qg3 {[%emt 0:00:52]} Bxb3 {[%emt 0:03:39]} ({Resist} 19... Rxc3 20. Rxd4 Rxg3 21. Rxd8 Rxg2+ 22. Kxg2 $14) 20. cxb3 {[%emt 0:00:15][%cal Od1d4] Threatens to win with Rxd4!} ({Much worse is} 20. Rxd4 Qxd4 21. cxb3 Qd2 $15) 20... Rxc3 $1 {[%emt 0:00:57]} 21. Rxd4 {[%emt 0:00:06]} Rxg3 {[%emt 0:00:35]} 22. Rxd8 {[%emt 0:00:07]} Rxg2+ {[%emt 0:01:15]} 23. Kxg2 {[%emt 0:00:06]} Rxd8 {[%emt 0:00:10]} 24. Rd1 {[%emt 0:01:41]} Rxd1 {[%emt 0:07:15]} 25. Bxd1 $11 {[%emt 0:00:02][%mdl 4096] Endgame KB-KB} Bc1 {[%emt 0:00:32]} 26. a4 {[%emt 0:00:10]} Bxb2 {[%emt 0:03:33]} 27. f4 {[%emt 0:00:09]} f6 {[%emt 0:02:03]} 28. Kf3 {[%emt 0:00:12]} Kf7 {[%emt 0:00:39]} 29. Be2 {[%emt 0:00:07]} Ke6 {[%emt 0:02:05]} 30. Bc4+ {[%emt 0:00:12]} Kd6 {[%emt 0:01:13]} 31. Bg8 {[%emt 0:00:29]} h6 {[%emt 0:00:36]} 32. h4 {[%emt 0:00:10]} g5 {[%emt 0:05:07]} 33. e5+ {[%emt 0:02:02]} fxe5 {[%emt 0:04:39]} 34. fxg5 {[%emt 0:00:08]} hxg5 {[%emt 0:01:19]} 35. hxg5 {[%emt 0:00:09]} Ke7 {[%emt 0:01:58]} 36. Ke4 {[%emt 0:00:14]} Kf8 {[%emt 0:00:47]} 37. Bc4 {[%emt 0:00:17]} a5 {[%emt 0:00:58]} 38. Bd5 {[%emt 0:00:09] Weighted Error Value: White=0.03 (flawless) /Black=0.03 (flawless)} 1/2-1/2

[Event "Polish Youth Ekstraliga 2022"]
[Site "Lublin"]
[Date "2022.07.02"]
[Round "8.3"]
[White "Jaworski, Tymon"]
[Black "Bartoszczuk, Adam"]
[Result "0-1"]
[ECO "A45"]
[WhiteElo "1628"]
[BlackElo "1662"]
[Annotator "NA RC"]
[PlyCount "100"]
[EventDate "2022.06.24"]
[EventType "team-tourn"]
[EventCountry "POL"]
[SourceTitle "playchess.com"]
[Source "ChessBase"]
[SourceQuality "1"]
[TimeControl "40/5400+30:1800+30"]

1. d4 {[%emt 0:00:13]} Nf6 {[%emt 0:00:14]} 2. Bg5 {[%emt 0:00:21]} c5 {[%emt 0:00:26]} 3. c3 {[%emt 0:02:33]} Qb6 {[%emt 0:07:39]} 4. Qc1 {[%emt 0:06:44]} d6 {[%emt 0:11:31]} 5. e3 {[%emt 0:04:46]} Bf5 {[%emt 0:09:11]} 6. Nf3 {[%emt 0:03:44]} Nbd7 {[%emt 0:04:01]} 7. Nbd2 {[%emt 0:02:29]} h6 {[%emt 0:01:49]} 8. Bh4 {[%emt 0:02:57]} e6 {[%emt 0:01:06]} 9. Be2 {[%emt 0:01:31]} d5 {[%emt 0:02:43]} 10. O-O {[%emt 0:05:27]} Be7 {[%emt 0:08:37]} 11. Bd1 {[%emt 0:04:56]} O-O {[%emt 0:09:13]} 12. Bc2 {[%emt 0:00:53]} Bxc2 {[%emt 0:00:17]} 13. Qxc2 {[%emt 0:00:02]} Rfe8 {[%emt 0:01:02]} 14. Rfe1 {[%emt 0:04:40]} Rac8 {[%emt 0:00:30]} 15. Qb3 {[%emt 0:00:26]} c4 {[%emt 0:03:09]} 16. Qc2 {[%emt 0:00:14]} Qc7 {[%emt 0:06:05]} 17. e4 {[%emt 0:01:26]} dxe4 {[%emt 0:01:42]} 18. Nxe4 {[%emt 0:03:13]} Nd5 {[%emt 0:00:17]} 19. Bg3 {[%emt 0:03:49]} Qb6 {[%emt 0:02:38]} 20. Ne5 {[%emt 0:03:36]} Nxe5 {[%emt 0:04:39]} 21. Bxe5 {[%emt 0:00:12]} f6 {[%emt 0:01:10]} 22. Bg3 {[%emt 0:00:15]} f5 {[%emt 0:00:54]} 23. Nc5 {[%emt 0:03:48]} Bxc5 {[%emt 0:01:55]} 24. dxc5 {[%emt 0:00:08]} Qxc5 {[%emt 0:00:17]} 25. Re5 {[%emt 0:03:45]} Qc6 {[%emt 0:03:14]} 26. Rae1 {[%emt 0:02:38]} Nf6 {[%emt 0:08:25]} 27. Qe2 {[%emt 0:04:27]} Rcd8 {[%emt 0:00:51]} 28. f3 {[%emt 0:04:11]} Kf7 {[%emt 0:00:41]} 29. Bf2 {[%emt 0:02:42]} Nh5 {[%emt 0:03:07]} 30. Rc5 {[%emt 0:00:49]} Qd6 {[%emt 0:05:17]} 31. Qxc4 {[%emt 0:01:56]} g6 {[%emt 0:02:43]} 32. Rc7+ {[%emt 0:02:40]} Re7 {[%emt 0:00:28]} 33. Rxe7+ {[%emt 0:06:29]} Qxe7 {[%emt 0:00:02]} 34. Be3 {[%emt 0:02:45]} g5 {[%emt 0:00:58]} 35. Bd4 {[%emt 0:00:58]} Nf4 {[%emt 0:00:24]} 36. Re5 {[%emt 0:01:01]} Nd5 {[%emt 0:00:36]} 37. g3 {[%emt 0:01:38]} Qd6 {[%emt 0:00:30]} 38. Qe2 {[%emt 0:01:26]} a6 {[%emt 0:00:31]} 39. Qc2 {[%emt 0:03:35]} Nb4 {[%emt 0:00:33]} 40. Qb3 {[%emt 0:00:00]} Nc6 {[%emt 0:00:00]} 41. Rxf5+ {[%emt 0:01:52]} Ke8 {[%emt 0:02:01]} 42. Rf6 {[%emt 0:20:16]} Nxd4 {[%emt 0:01:20]} 43. Qc4 {[%emt 0:00:36]} Qe5 {[%emt 0:04:55]} 44. Rxh6 {[%emt 0:00:24]} Nxf3+ {[%emt 0:01:16]} 45. Kf2 {[%emt 0:01:08]} Rd2+ {[%emt 0:02:11]} 46. Kxf3 {[%emt 0:00:04]} Qf5+ {[%emt 0:00:11]} 47. Ke3 {[%emt 0:00:11]} Qf2+ {[%emt 0:00:15]} 48. Ke4 {[%emt 0:00:19]} Re2+ {[%emt 0:00:45]} 49. Qxe2 {[%emt 0:00:39]} Qxe2+ {[%emt 0:00:02]} 50. Kd4 {[%emt 0:00:13]} Qd2+ {[%emt 0:03:13]} 0-1